Cogmind - Beta 13 @@@ ROGUE MODE // 2024.04.28 @ 20:31:40 Player: Cherman0 Result: Destroyed by 8R-AWN with 8R-AWN's Boregun Performance ------------- Evolutions (1) 500 Regions Visited (5) 1000 Robots Destroyed (79) 395 Value Destroyed (1479) 1479 Prototype IDs (35) 700 Alien Tech Used (0) 0 Bonus (410) 410 TOTAL SCORE: 4484 Bonus ------- High Alert Combat Kills 11 Follower Combat Kills 99 Aligned with FarCom 300 Cogmind --------- Core Integrity 0/400 Matter 52/300 Energy 91/100 System Corruption 4% Temperature Cool (1) Movement Treading (320) Ox2 Location -9/Exiles Parts ------- > --- POWER (1) -------- (None) > --- PROPULSION (3) --- Light Treads > --- UTILITY (3) ------ High-capacity Storage Unit Seismic Detector (fused) High-powered Tractor Beam > --- WEAPON (2) ------- Assault Cannon > --- INVENTORY (20) --- Improved Ion Engine High-capacity Matter Pod (0) Experimental Sensor Array Improved Terrain Scanner Terrain Scan Processor Hacking Suite Hacking Suite System Shield System Shield EM Pulse Cannon Missile Launcher Missile Launcher Heavy Hammer Signal Generator Peak State ------------ > --- POWER ------------ Nuclear Core > --- PROPULSION ------- Light Treads Light Treads Light Treads > --- UTILITY ---------- High-capacity Storage Unit Seismic Detector Improved Light Armor Plating > --- WEAPON ----------- Guided Plasma Cannon > --- INVENTORY -------- Improved Ion Engine Light Treads Light Treads High-capacity Matter Pod Experimental Sensor Array Improved Terrain Scanner Terrain Scan Processor Hacking Suite Hacking Suite System Shield System Shield High-powered Tractor Beam EM Pulse Cannon Assault Cannon Assault Cannon Missile Launcher Missile Launcher Heavy Hammer Signal Generator [Rating: 24] Favorites ----------- Power Nuclear Core Engine Ion Engine Power Core Nuclear Core Propulsion Light Treads Treads Light Treads Leg Aluminum Leg Utility High-capacity Storage Unit Device Seismic Detector Storage High-capacity Storage Unit Protection Medium Armor Plating Weapon Autogun Energy Gun Small Laser Energy Cannon Guided Plasma Cannon Ballistic Gun Autogun Ballistic Cannon Assault Cannon Launcher Missile Launcher Impact Weapon Heavy Hammer Build | -11 -10 -10 -9 -9 -9 ------- Run | Yrd Mat Min Mat Min Exi Slots Evolved 2 | . . . 2 . . Power . | . . . . . . Propulsion 1 | . . . 1 . . Utility 1 | . . . 1 . . Weapon . | . . . . . . Parts Attached 93 | 4 7 5 47 16 14 Power 5 | . 1 2 2 . . Engine 2 | . 1 1 . . . Core 3 | . . 1 2 . . Reactor . | . . . . . . Propulsion 27 | 2 1 3 16 3 2 Treads 27 | 2 1 3 16 3 2 Leg . | . . . . . . Wheel . | . . . . . . Hover . | . . . . . . Flight . | . . . . . . Utility 15 | 1 3 . 5 4 2 Device 4 | 1 . . 1 1 1 Storage 3 | . 3 . . . . Processor . | . . . . . . Hackware . | . . . . . . Protection 8 | . . . 4 3 1 Artifact . | . . . . . . Weapon 46 | 1 2 . 24 9 10 Energy Gun 2 | 1 . . 1 . . Energy Cannon 1 | . . . . . 1 Ballistic Gun 19 | . 2 . 15 2 . Ballistic Cannon 10 | . . . 2 3 5 Launcher 6 | . . . 2 1 3 Special Weapon . | . . . . . . Impact Weapon 8 | . . . 4 3 1 Slashing Weapon . | . . . . . . Piercing Weapon . | . . . . . . Special Melee Weapon . | . . . . . . Unidentified Prototypes 1 | . . . 1 . . Parts Lost 15 | . . 1 1 6 7 Power 1 | . . . . . 1 Propulsion 6 | . . 1 . 1 4 Utility 5 | . . . 1 3 1 Weapon 3 | . . . . 2 1 Highest Loss Streak 6 | . . 1 1 6 5 To Critical Strikes 5 | . . . . . 5 Average Slot Usage (%) 97 | . 100 99 99 94 84 Engine 3 | . 14 6 . . . Core 8 | . . 7 10 11 10 Treads 30 | . 28 27 32 32 31 Device 11 | . 14 14 10 6 11 Storage 12 | . 14 14 11 11 11 Protection 6 | . . . 11 11 10 Energy Gun 2 | . 13 . . . . Ballistic Gun 16 | . 14 28 21 4 . Ballistic Cannon 3 | . . . . 16 7 Naked Turns . | . . . . . . Heaviest Build 65 | 12 52 54 65 61 62 Greatest Support 62 | 40 40 42 62 60 60 Greatest Overweight (x) 3 | . 1 2 3 1 2 Average Overweight (x) . | . . 1 . . . Largest Inventory Capacity 20 | 8 20 20 20 20 20 Average Capacity 18 | 8 13 20 20 20 20 Most Carried 20 | 6 11 18 20 20 19 Average Carried 16 | 2 9 15 19 17 17 Final Capacity 20 | 8 20 20 20 20 20 Final Carried 20 | 4 11 18 20 17 14 Class Distribution -------------------- 93% | Mutant 6% | Scavenger-Mutant Dominant Class ---------------- Mutant | -10/Materials Mutant | -10/Mines Mutant | -9/Materials Mutant | -9/Mines Mutant | -9/Exiles Resources | -11 -10 -10 -9 -9 -9 ----------- Run | Yrd Mat Min Mat Min Exi Matter Collected 3305 | 240 373 324 1504 627 237 Remotely 35 | . . . . . 35 Salvage Created 2771 | 189 450 471 1548 104 9 Parts 190 | 17 32 28 110 3 . Haulers Intercepted 8 | . 2 . 6 . . Recyclers Shooed 6 | . . 1 5 . . Parts Field Recycled . | . . . . . . Retrieved Matter . | . . . . . . Parts Self-Destructed . | . . . . . . Prevented . | . . . . . . Kills | -11 -10 -10 -9 -9 -9 ------- Run | Yrd Mat Min Mat Min Exi Combat Hostiles Destroyed 62 | . 11 10 22 13 6 Melee 1 | . . . . 1 . Guns 42 | . 11 10 18 3 . Cannons 6 | . . . 1 3 2 AOE 13 | . . . 3 6 4 Classes Destroyed 12 | 2 5 2 1 2 . Worker 3 | . . 1 2 . . Tunneler 6 | 5 . . . 1 . Hauler 8 | . 2 . 6 . . Recycler 9 | 1 1 1 6 . . Operator 1 | . 1 . . . . Watcher 6 | . 1 . 5 . . Swarmer 23 | . 9 3 11 . . Grunt 9 | . 2 5 1 1 . Brawler 1 | . . . 1 . . Sentry 11 | . . 2 9 . . Demolisher 2 | . . . . 2 . Assembled 16 | . . . . 10 6 Best Kill Streak 8 | 4 4 3 7 8 6 Combat Bots Only 8 | . 4 3 7 8 6 Max Kills in Single Turn 2 | 2 1 1 2 2 2 Gunslinging 1 | . . . 1 . . Exploded 2 | . . . 2 2 2 Melee 1 | . . . . 1 . Uniques/NPCs Destroyed . | . . . . . . Combat | -11 -10 -10 -9 -9 -9 -------- Run | Yrd Mat Min Mat Min Exi Hostile Shots Fired 300 | . 35 57 69 53 86 Missed 71 | . 9 6 18 11 27 Damage Taken 3777 | . 225 667 665 1097 1123 Core 603 | . 45 158 44 188 168 Absorbed by Shields . | . . . . . . Regen/Repaired (Parts) 56 | . . . 56 . . Core Remaining (%) 59 | 100 . 18 . . . Volleys Fired 231 | 10 25 34 100 27 35 Largest 2 | 2 2 2 2 2 2 Hottest 120 | 90 90 46 88 88 120 Shots Fired 428 | 20 50 67 188 46 57 Gun 347 | 20 50 67 174 36 . Cannon 65 | . . . 11 5 49 Launcher 16 | . . . 3 5 8 Special . | . . . . . . Kinetic 357 | . 16 67 185 41 48 Thermal 55 | 20 34 . . . 1 Explosive 16 | . . . 3 5 8 Electromagnetic . | . . . . . . Robot Hit Streak 15 | 6 10 12 14 15 5 Robot Miss Streak 4 | 1 4 2 3 2 2 Penetration Max . | . . . . . . Secondary Targets 6 | . 1 2 3 . . Max Gunslinging Chain 1 | . 1 1 1 . . Shots Hit Robots 262 | 13 30 46 115 29 29 Core Hits 140 | 7 21 15 57 29 11 Critical Kills 3 | . . 1 2 . . Critical Parts Destroyed 2 | . . . 2 . . Critical Strikes 11 | 1 3 1 4 1 1 Burn 4 | 1 3 . . . . Destroy 5 | . . 1 4 . . Blast 2 | . . . . 1 1 Melee Attacks 25 | . . . 4 5 16 Impact 25 | . . . 4 5 16 Slashing . | . . . . . . Piercing . | . . . . . . Sneak Attacks . | . . . . . . Combat Hostiles . | . . . . . . Follow-up Attacks . | . . . . . . Damage Inflicted 5353 | 175 400 710 1982 1050 1036 Guns 3323 | 175 400 699 1719 330 . Cannons 798 | . . . 72 73 653 Explosions 1075 | . . . 167 525 383 Melee 62 | . . . . 62 . Ramming 95 | . . 11 24 60 . Kinetic 3675 | . 129 699 1791 403 653 Thermal 446 | 175 271 . . . . Explosive 1075 | . . . 167 525 383 Electromagnetic . | . . . . . . Impact 62 | . . . . 62 . Slashing . | . . . . . . Piercing . | . . . . . . Highest Corruption 4 | . 1 1 4 4 4 Average Corruption 2 | . 1 1 3 4 4 Corruption Purged . | . . . . . . Corruption Blocked . | . . . . . . Effects 127 | . 10 11 44 39 23 Message Errors 30 | . 1 2 12 10 5 Matter Fused 35 | . 5 3 13 11 3 Heat Flow Errors 18 | . 3 2 4 4 5 Energy Discharges 17 | . 1 1 5 5 5 Parts Rejected 1 | . . . . 1 . Parts Fused 2 | . . . 1 . 1 Data Loss (minor) 8 | . . 1 4 2 1 Data Loss (major) 8 | . . . 3 4 1 Misfires 4 | . . 1 2 1 . Alerts 4 | . . 1 . 1 2 Overload Shots . | . . . . . . Overflow Damage 64 | . . . 5 29 30 Projectiles . | . . . . . . Explosions 51 | . . . 5 16 30 Melee 13 | . . . . 13 . Knockbacks 8 | . . . . 1 7 Impact 1 | . . . . 1 . Kinetic 7 | . . . . . 7 Secondary . | . . . . . . Self-Inflicted Damage 97 | . . . 27 14 56 Shots 4 | . . . 1 2 1 Rammed 14 | . . 3 5 6 . Targets Rammed 16 | . . 4 5 7 . Kicked . | . . . . . . Crushed 2 | . . 1 . 1 . Highest Temperature 269 | 240 269 174 256 269 239 Average Temperature 58 | 103 74 42 38 67 75 Received Heat Transfer 638 | . 30 279 213 36 80 Effects 3 | 1 2 . . . . Energy Bleed 1 | 1 . . . . . Interference 2 | . 2 . . . . Siege Activations . | . . . . . . Robots Corrupted . | . . . . . . Combat Hostiles . | . . . . . . Parts Fried . | . . . . . . Impact Corruptions 1 | . . . . 1 . Robots Melted . | . . . . . . Combat Hostiles . | . . . . . . Parts Melted 2 | 1 1 . . . . Heat Transferred 1474 | 533 941 . . . . Parts Sabotaged . | . . . . . . Parts Stolen . | . . . . . . Parts Stripped . | . . . . . . Power Chain Reactions . | . . . . . . Alert | -11 -10 -10 -9 -9 -9 ------- Run | Yrd Mat Min Mat Min Exi Peak Influence 448 | 30 209 116 448 165 . Initial 66 | . 19 . 44 66 . Average 90 | 15 55 42 157 26 . Maximum Alert Level 2 | . 1 . 2 . . Low Security (%) 94 | 100 97 100 87 100 . Level 1 4 | . 2 . 10 . . Level 2 . | . . . 1 . . Level 3 . | . . . . . . Level 4 . | . . . . . . Level 5 . | . . . . . . High Security . | . . . . . . Max Security . | . . . . . . Squads Dispatched 5 | . 2 1 1 1 . Investigation 3 | . 1 1 1 . . Extermination . | . . . . . . Reinforcement 2 | . 1 . . 1 . Assault . | . . . . . . Garrison . | . . . . . . Intercept . | . . . . . . Searches Triggered . | . . . . . . Construction Impeded 1 | . . . . 1 . Haulers Reinforced . | . . . . . . Active Scanning Responses . | . . . . . . Cargo Convoy Interrupts . | . . . . . . Stealth | -11 -10 -10 -9 -9 -9 --------- Run | Yrd Mat Min Mat Min Exi Distress Signals 3 | . 1 . 2 . . Communications Jammed . | . . . . . . Distress Signals . | . . . . . . Times Spotted 95 | . 24 12 31 17 11 Peak Tracking Total 12 | . 4 3 5 6 12 Tactical Retreats 12 | . 4 . 1 4 3 Traps | -11 -10 -10 -9 -9 -9 ------- Run | Yrd Mat Min Mat Min Exi Traps Triggered 5 | . 1 . 4 . . Indirectly . | . . . . . . Trap Hack Attempts . | . . . . . . Triggered . | . . . . . . Disarmed 1 | . . . 1 . . Reprogrammed . | . . . . . . Reused . | . . . . . . Traps Extracted . | . . . . . . Installed . | . . . . . . Triggered . | . . . . . . Machines | -11 -10 -10 -9 -9 -9 ---------- Run | Yrd Mat Min Mat Min Exi Machines Disabled 16 | . . 4 . . 12 Max in Single Turn 3 | . . . . . 3 Machines Repaired . | . . . . . . Machines Dismantled . | . . . . . . Machines Sabotaged . | . . . . . . Overloaded Fab Kills . | . . . . . . Hacking | -11 -10 -10 -9 -9 -9 --------- Run | Yrd Mat Min Mat Min Exi Machines Accessed 31 | . 10 1 17 1 2 Terminals 20 | . 7 . 12 1 . Fabricators . | . . . . . . Repair Stations 3 | . 1 . 2 . . Recycling Units 4 | . 2 . 2 . . Scanalyzers 1 | . . . 1 . . Garrison Access . | . . . . . . Total Hacks 84 | . 29 1 50 2 2 Successful 44 | . 13 1 27 1 2 Failed 39 | . 15 . 23 1 . Catastrophic 3 | . 1 . 2 . . Database Lockouts 1 | . 1 . . . . Manual 24 | . 9 . 14 . 1 Terminals 60 | . 22 . 36 2 . Fabricators . | . . . . . . Repair Stations 9 | . 4 . 5 . . Recycling Units 9 | . 3 . 6 . . Scanalyzers 3 | . . . 3 . . Garrison Access . | . . . . . . Terminal Hacks 30 | . 9 1 17 1 2 Record 1 | . . . . . 1 Robot Analysis 2 | . 1 . 1 . . Prototype ID Bank 9 | . 5 . 4 . . Open Door 1 | . . 1 . . . Branch Access Points 2 | . . . 2 . . Unreport Threat 1 | . . . 1 . . Locate Traps 5 | . 1 . 4 . . Disarm Traps 1 | . . . 1 . . Dispatch Records 1 | . 1 . . . . Hauler Manifests 1 | . . . 1 . . Zone Layout 5 | . 1 . 3 1 . Derelict Proto ID Bank 1 | . . . . . 1 Fabricator Hacks . | . . . . . . Repair Station Hacks 3 | . 1 . 2 . . Scan Component 2 | . 1 . 1 . . Repair 1 | . . . 1 . . Recycling Unit Hacks . | . . . . . . Scanalyzer 3 | . . . 3 . . Insert Component 2 | . . . 2 . . Analyze 1 | . . . 1 . . Garrison Access Hacks . | . . . . . . Unauthorized Hacks 8 | . 3 . 5 . . Terminals 4 | . 2 . 2 . . Assimilate 2 | . 1 . 1 . . Operators 2 | . 1 . 1 . . Fabricators . | . . . . . . Repair Stations . | . . . . . . Recycling Units 4 | . 1 . 3 . . Reject 2 | . . . 2 . . Recyclers 2 | . 1 . 1 . . Scanalyzers . | . . . . . . Garrison Access . | . . . . . . Data Cores Recovered . | . . . . . . Used . | . . . . . . Hacking Detections 24 | . 8 . 16 . . Full Trace Events 3 | . 1 . 2 . . Feedback Events . | . . . . . . Feedback Blocked . | . . . . . . Robot Schematics Acquired . | . . . . . . Robots Built . | . . . . . . Authchips . | . . . . . . Time . | . . . . . . Total Robot Build Rating . | . . . . . . Part Schematics Acquired 1 | . . . 1 . . Parts Built . | . . . . . . Authchips . | . . . . . . Time . | . . . . . . Total Part Build Rating . | . . . . . . Parts Repaired 1 | . . . 1 . . Time 38 | . . . 38 . . Parts Recycled . | . . . . . . Recycled Matter . | . . . . . . Retrieved Matter . | . . . . . . Retrieved Components . | . . . . . . Parts Scanalyzed 1 | . . . 1 . . Part Schematics Acquired 1 | . . . 1 . . Parts Damaged . | . . . . . . Bothacking | -11 -10 -10 -9 -9 -9 ------------ Run | Yrd Mat Min Mat Min Exi Used RIF Installer . | . . . . . . Robots Hacked . | . . . . . . Non-combat . | . . . . . . Combat . | . . . . . . Robot Hacks Applied . | . . . . . . Relay Couplers Released . | . . . . . . Fabnet Peak Effective % . | . . . . . . Robots Rewired . | . . . . . . Allies Hacked . | . . . . . . Hacks Repelled . | . . . . . . Allies | -11 -10 -10 -9 -9 -9 -------- Run | Yrd Mat Min Mat Min Exi Total Allies 4 | . 1 2 1 . . Largest Group 2 | . 1 2 2 1 . Highest-Rated Group 41 | . 10 41 41 10 . Highest-Rated Ally 31 | . 10 31 31 10 . Total Orders . | . . . . . . Ally Attacks 14 | . . 5 9 . . Total Damage 234 | . . 128 106 . . Kills 5 | . . 2 3 . . Allies Corrupted 2 | . 1 . 1 . . Allies Melted . | . . . . . . Intel | -11 -10 -10 -9 -9 -9 ------- Run | Yrd Mat Min Mat Min Exi Robot Analysis Total 2 | . 1 . 1 . . Derelict Logs Recovered 3 | . . 1 . 2 . Drone Launches . | . . . . . . Drone Recoveries . | . . . . . . Exploration | -11 -10 -10 -9 -9 -9 ------------- Run | Yrd Mat Min Mat Min Exi Turns Passed 10169 | 94 1667 1991 3857 1555 1005 Spaces Moved 4301 | 31 779 719 1605 684 483 Core . | . . . . . . Treads 4301 | 31 779 719 1605 684 483 Legs . | . . . . . . Wheels . | . . . . . . Hover . | . . . . . . Flight . | . . . . . . Fastest Speed 155 | 160 160 232 155 160 160 Average Speed 193 | 160 180 235 183 206 173 Slowest Speed 400 | 160 240 320 400 240 320 Overloaded Moves . | . . . . . . Propulsion Burnouts . | . . . . . . Robots Hopped . | . . . . . . Cave-ins Triggered . | . . . . . . Time Travels 1 | . . . . . 1 Exploration Rate (%) 77 | 4 96 98 96 99 70 Regions Visited 5 Branch Regions 3 Pre-discovered Areas 3 | . . . . 2 1 Known Exits Taken 1 | . . . 1 . . Unknown Exits Taken 4 | 1 1 1 . 1 . Scrap Searched 3 | . . 2 . 1 . Spaces Dug 54 | . . . 18 26 10 Terrain Destroyed 154 | . . . 31 55 68 Melee 6 | . . . 4 2 . Projectile 15 | . . . . . 15 AOE 133 | . . . 27 53 53 Terrain Rammed . | . . . . . . Walls Destroyed . | . . . . . . Machines Disabled . | . . . . . . Actions | -11 -10 -10 -9 -9 -9 --------- Run | Yrd Mat Min Mat Min Exi Total 5709 | 57 995 959 2361 772 565 Wait 942 | 5 167 189 540 30 11 Move 4296 | 30 778 718 1604 683 483 Hop . | . . . . . . Pick Up 46 | 3 9 6 24 3 1 Fast Attach 15 | 1 2 1 7 2 2 Attach 15 | 2 . . 3 5 5 Detach 2 | . . . . . 2 Swap 63 | 1 5 4 37 9 7 Drop 58 | 5 9 3 37 1 3 Fire 231 | 10 25 34 100 27 35 Melee 25 | . . . 4 5 16 Ram . | . . . . . . Kick . | . . . . . . Crush 16 | . . 4 5 7 . Escape Stasis . | . . . . . . Rewire . | . . . . . . Trap . | . . . . . . Miscellaneous . | . . . . . . Route ------- -11/Scrapyard -10/Materials (discovered 4 exits: *Mat x3 / *Min) -10/Mines (discovered 3 exits: *Mat x2 / [*Sub]) -9/Materials (discovered 5 exits: [*Mat x3] / *Min x2) -9/Mines (discovered 3 exits: [*Mat x2] / *Exi) -9/Exiles (discovered 1 exit: [*Min]) History --------- Turn | Location | Event 13 | -11/Scrapyard | Discovered new exit (range 3) 95 | -11/Scrapyard | Entered Materials 311 | -10/Materials | Build established: Mutant 509 | -10/Materials | Central database locked down 706 | -10/Materials | Discovered new exit (range 9) 776 | -10/Materials | Discovered new exit (range 10) 1016 | -10/Materials | Discovered new exit (range 18) 1095 | -10/Materials | Derelicts attacked the area 1538 | -10/Materials | Discovered new exit (range 13) 1762 | -10/Materials | Entered Mines 1934 | -10/Mines | Discovered new exit (range 10) 2356 | -10/Mines | Core integrity fell below 50% 2544 | -10/Mines | Met a Derelict shopkeep closing up shop 2694 | -10/Mines | Build established: Scavenger-Mutant 2826 | -10/Mines | Learned Materials emergency access door positions 2919 | -10/Mines | Discovered new exit (range 7) 2922 | -10/Mines | Core integrity fell below 20% 3019 | -10/Mines | Build established: Mutant 3728 | -10/Mines | Discovered new exit (range 10) 3753 | -10/Mines | Entered Materials 3753 | -9/Materials | Accompanied by 2 allies 3753 | -9/Materials | Evolved 2 slots: Propulsion x1, Utility x1 3758 | -9/Materials | Led the pair of lost Derelicts to an unsafe place 3966 | -9/Materials | Destroyed 7 combat bots 3975 | -9/Materials | Discovered new exit (range 15) 4645 | -9/Materials | Discovered new exit (range 9) 4951 | -9/Materials | Discovered new exit (range 16) 5043 | -9/Materials | Identified exit to Mines 5097 | -9/Materials | Repaired Nuclear Core 5891 | -9/Materials | Discovered new exit (range 16) 6645 | -9/Materials | Discovered new exit (range 3) 7610 | -9/Materials | Entered Mines 7610 | -9/Mines | Accompanied by 1 ally 7616 | -9/Mines | Met a Derelict bent on vengeance 7704 | -9/Mines | Discovered new exit (range 16) 7752 | -9/Mines | Deemed a non-threat by the Exiles lab entrance 7769 | -9/Mines | Learned location of Storage (-8) 7820 | -9/Mines | Assembled infested the area 7905 | -9/Mines | Destroyed 8 combat bots 7954 | -9/Mines | Core integrity fell below 50% 7996 | -9/Mines | Lost 6 parts (1n3u2w) 8129 | -9/Mines | Learned Materials terminal intel 8389 | -9/Mines | Found a damaged Exp. Sensor Array with a note attached 8392 | -9/Mines | Found Prototype Device 8468 | -9/Mines | Met a Derelict testing a Signal Generator 8472 | -9/Mines | Discovered new exit (range 6) 8473 | -9/Mines | Found Signal Generator 9002 | -9/Mines | Discovered new exit (range 7) 9165 | -9/Mines | Entered Exiles 9205 | -9/Exiles | Met 8R-AWN 9234 | -9/Exiles | Met EX-HEX 9306 | -9/Exiles | Met EX-DEC 9398 | -9/Exiles | Learned location of Zion (-6) 9427 | -9/Exiles | Met EX-BIN 9466 | -9/Exiles | Aligned with FarCom system 9467 | -9/Exiles | Given EX-Vault access code 9506 | -9/Exiles | Opened EX-Vault 9520 | -9/Exiles | Found Gui. Plasma Cannon 9549 | -9/Exiles | Found Chronowheel 9549 | -9/Exiles | Activated Chronowheel 9549 | -9/Exiles | Spacetime reconverged on an earlier point 9588 | -9/Exiles | Warned to stay clear of 0b10 Research branches 9688 | -9/Exiles | Discovered new exit (range 14) 9997 | -9/Exiles | Attacked by the Exiles 10123 | -9/Exiles | Core integrity fell below 20% 10140 | -9/Exiles | Lost 5 parts (1p3n1u) 10170 | -9/Exiles | Destroyed by 8R-AWN with 8R-AWN's Boregun Last Messages --------------- 10150_ HV Slug penetrates Earth. 10153_ HV Slug penetrates Wall. 10153_ HV Slug penetrates Earth. 10153_ Penetrated by HV Slug. 10153_ HV Slug penetrates Earth. 10156_ Penetrated by HV Slug. 10156_ HV Slug penetrates Wall. 10156_ Penetrated by HV Slug. 10156_ HV Slug penetrates Wall. 10160_ Penetrated by HV Slug. 10160_ HV Slug penetrates Wall. 10160_ Penetrated by HV Slug. 10160_ Critical hit (Destroy). 10160_ Assault Cannon destroyed. 10164_ 8CFVWIW6K VEZEC2O0HA=&QZ|IZIL: